bitfinex-derivatives/quotes_BNBF0:USTF0_20250130
["timestamp","ask_amount","ask_price","bid_price","bid_amount"]
[1738233195288,0.56554416,678.94,677.57,1.53913063]
[1738233195486,0.56554849,678.93,677.57,1.53913063]
[1738233195686,0.56555283,678.92,677.57,1.53913063]
[1738233195888,0.56555717,678.91,677.57,1.53913063]
[1738233196086,0.56556151,678.9,677.57,1.53913063]
[1738233196483,0.56556585,678.89,677.57,1.53913063]
[1738233196782,0.27096732,678.88,677.57,1.53913063]
[1738233201489,0.29459853,678.89,677.57,1.53913063]
[1738233201690,0.27097079,678.88,677.57,1.53913063]
[1738233202784,0.27097338,678.87,677.57,1.53913063]
[1738233202988,0.27097338,678.88,677.57,1.53913063]
[1738233203190,0.29459853,678.89,677.57,1.53913063]
[1738233203390,0.27097456,678.88,677.57,1.53913063]
[1738233203790,0.29460721,678.87,677.57,1.53913063]
[1738233203991,0.27097456,678.86,677.57,1.53913063]
[1738233204585,0.29461589,678.85,677.57,1.53913063]
[1738233204985,0.27100054,678.84,677.57,1.53913063]
[1738233205191,0.56562077,678.84,677.57,1.53913063]
[1738233205492,0.27100054,678.83,677.57,1.53913063]
[1738233208196,0.29462023,678.84,677.57,1.53913063]
[1738233208399,0.27099566,678.83,677.57,1.53913063]
[1738233211502,0.27099566,678.83,677.58,0.25907374]
[1738233215502,0.27099566,678.83,677.57,1.53913063]
[1738233218307,1.39718233,678.84,677.57,1.53913063]
[1738233218308,0.29462023,678.84,677.57,1.53913063]
[1738233218513,0.27098932,678.83,677.57,1.53913063]
[1738233221619,0.29462023,678.84,677.57,1.53913063]
[1738233221814,0.2709733,678.83,677.57,1.53913063]
[1738233225324,0.2709733,678.83,677.58,0.25903696]
[1738233226923,0.2709733,678.83,677.57,1.53913063]
[1738233226924,0.29462023,678.84,677.57,1.53913063]
[1738233227425,1.1025621,678.81,677.6,1.10541507]
[1738233229026,0.27095251,678.8,677.61,0.25902263]
[1738233230127,0.29462023,678.84,677.59,1.10541507]
[1738233230426,0.27094795,678.83,677.6,0.25901457]
[1738233233335,0.27094795,678.83,677.6,1.36442964]
[1738233233533,0.27094795,678.83,677.61,0.25901457]
[1738233236133,0.27094795,678.83,677.59,0.25901457]
[1738233236428,0.27094795,678.83,677.6,0.25901457]
[1738233236636,0.27095551,678.82,677.61,0.259037]
[1738233236832,0.27095551,678.83,677.59,0.259037]
[1738233237133,0.27095551,678.82,677.6,0.259037]
[1738233237346,0.27095551,678.81,677.61,0.259037]
[1738233237633,0.27095551,678.8,677.62,0.259037]
[1738233237825,0.27095551,678.83,677.59,0.259037]
[1738233238030,0.27095551,678.82,677.6,0.259037]
[1738233238329,0.27095551,678.81,677.61,0.259037]
[1738233238534,0.27095551,678.83,677.58,0.259037]
[1738233238732,0.27095551,678.82,677.59,0.259037]
[1738233238934,0.27095551,678.83,677.58,0.259037]
[1738233239133,0.27095551,678.82,677.59,0.259037]
[1738233239335,0.27095551,678.83,677.58,0.259037]
[1738233239534,0.27095551,678.82,677.59,0.259037]
[1738233239736,0.27095551,678.81,677.6,0.259037]
[1738233239936,0.27095551,678.8,677.61,0.259037]
[1738233240137,0.27095551,678.83,677.62,0.259037]
[1738233240329,0.27095551,678.82,677.58,0.259037]
[1738233240534,0.27095551,678.83,677.59,0.259037]
[1738233240837,0.27095551,678.82,677.6,0.259037]
[1738233241138,0.27095551,678.81,677.61,0.259037]
[1738233241338,0.27095551,678.8,677.62,0.259037]
[1738233241539,0.27095551,678.79,677.63,0.259037]
[1738233241738,0.27095551,678.78,677.64,0.259037]
[1738233241932,0.29462023,678.84,677.56,1.40059188]
[1738233241933,0.27095551,678.83,677.56,1.40059188]
[1738233242134,0.27095551,678.82,677.57,0.2590342]
[1738233242335,0.27095551,678.81,677.6,1.53918736]
[1738233242540,0.27095551,678.83,677.61,0.2590342]
[1738233242742,0.27095551,678.82,677.61,0.2590342]
[1738233242941,0.27095551,678.83,677.61,0.2590342]
[1738233248945,1.1025621,678.82,677.63,1.10541507]
[1738233249244,1.1025621,678.82,677.64,0.2590342]
[1738233249245,0.27095551,678.81,677.64,0.2590342]
[1738233252345,1.1025621,678.74,677.64,1.36444927]
[1738233252545,0.2709591,678.73,677.65,0.25904305]
[1738233254146,0.27095903,678.72,677.66,0.259043]
[1738233254346,0.27095903,678.73,677.65,0.259043]
[1738233254545,0.27095903,678.72,677.66,0.259043]
[1738233254746,0.27095903,678.73,677.65,0.259043]
[1738233255046,0.27095903,678.72,677.68,1.10541507]
[1738233255246,0.27095903,678.71,677.69,0.259043]
[1738233255447,0.27095903,678.7,677.69,0.259043]
[1738233255651,1.1025621,678.74,677.68,1.10541507]
[1738233255848,0.27095826,678.73,677.69,0.25904224]
[1738233257449,0.27095826,678.73,677.68,1.10541507]
[1738233258144,0.27095826,678.73,677.69,1.10541507]
[1738233258947,1.1025621,678.74,677.69,1.10541507]
[1738233259147,0.27095865,678.73,677.69,1.10541507]
[1738233259348,1.1025621,678.74,677.69,1.10541507]
[1738233260647,0.29462023,678.84,677.62,1.53919303]
[1738233260850,0.27095443,678.83,677.62,1.53919303]
[1738233266157,0.29462023,678.84,677.62,1.53919303]
[1738233266158,0.27095324,678.82,677.62,1.53919303]
[1738233266354,0.27095324,678.81,677.62,1.53919303]
[1738233266555,0.27095324,678.83,677.62,1.53919303]
[1738233266753,0.27095324,678.82,677.62,1.53919303]
[1738233266951,0.27095324,678.83,677.62,1.53919303]
[1738233267256,0.27095324,678.82,677.62,1.53919303]
[1738233267456,0.27095324,678.81,677.62,1.53919303]
[1738233267656,0.27095324,678.8,677.62,1.53919303]
[1738233267857,0.29462023,678.84,677.62,1.53919303]
[1738233268056,0.27094697,678.83,677.62,1.53919303]
[1738233268459,1.10532002,678.63,677.63,1.10541507]
[1738233269258,1.10532002,678.63,677.64,0.25902425]
[1738233269459,1.10532002,678.63,677.63,1.10541507]
[1738233269654,1.10532002,678.63,677.64,0.25902666]
[1738233270254,1.10532002,678.63,677.63,1.10541507]
[1738233270463,1.10532002,678.63,677.65,0.25901201]
[1738233270658,1.10532002,678.63,677.66,0.25901201]
[1738233270858,1.10532002,678.63,677.67,0.25901201]
[1738233271159,1.10532002,678.63,677.68,0.25901201]
[1738233271459,1.10532002,678.63,677.69,0.25901201]
[1738233271660,1.10532002,678.65,677.66,1.10541507]
[1738233272056,1.10532002,678.65,677.67,0.2589568]
[1738233272562,1.10532002,678.65,677.68,0.25895096]
[1738233272859,1.10532002,678.65,677.69,0.25895096]
[1738233273063,1.10532002,678.65,677.7,0.25895096]
[1738233273257,1.10532002,678.65,677.67,0.25895096]
[1738233274366,1.10532002,678.76,677.7,1.10541507]
[1738233274567,1.10532002,678.76,677.71,0.25895096]
[1738233275366,1.10532002,678.76,677.7,1.10541507]
[1738233275567,1.10532002,678.76,677.71,0.25893838]
[1738233275962,1.10532002,678.76,677.7,1.10541507]
[1738233276265,1.10532002,678.79,677.69,1.10541507]
[1738233278667,1.10532002,678.79,677.64,1.5391363]
[1738233278871,0.29462023,678.84,677.65,0.55404417]
[1738233279162,0.29462023,678.84,677.66,0.25890657]
[1738233280269,0.29462023,678.84,677.65,0.2951376]
[1738233280470,0.29462023,678.84,677.66,0.25891204]
[1738233282070,0.29462023,678.84,677.67,0.25890247]
[1738233282265,0.29462023,678.84,677.68,0.25890247]
[1738233282465,0.29462023,678.84,677.66,0.25890247]
[1738233282668,0.29462023,678.84,677.67,0.25890247]
[1738233282869,0.29462023,678.84,677.68,0.25890247]
[1738233283066,0.29462023,678.84,677.69,0.25890247]
[1738233283271,0.29462023,678.84,677.66,0.25890247]
[1738233283471,0.29462023,678.84,677.65,0.2951376]
[1738233283673,0.29462023,678.84,677.66,0.25891039]
[1738233284874,0.29462023,678.84,677.65,0.2951376]
[1738233285667,0.29462023,678.84,677.66,0.25891368]
[1738233286874,0.27091919,678.83,677.66,0.25891368]
[1738233287375,1.10532002,678.82,677.66,0.25891368]
[1738233287573,0.27091919,678.81,677.66,0.25891368]
[1738233288976,1.10532002,678.82,677.65,0.2951376]
[1738233289172,0.2709347,678.81,677.66,0.25896672]
[1738233289876,0.2709347,678.81,677.65,0.2951376]
[1738233290477,1.10532002,678.77,677.65,0.2951376]
[1738233293078,0.2709539,678.76,677.65,0.2951376]
[1738233293278,1.10532002,678.77,677.65,0.2951376]
[1738233293478,0.27095384,678.76,677.65,0.2951376]
[1738233294575,1.10532002,678.74,677.65,0.2951376]
[1738233294875,0.27095384,678.73,677.65,0.2951376]
[1738233295079,0.27096309,678.72,677.65,0.2951376]
[1738233295274,0.27096309,678.73,677.65,0.2951376]
[1738233295479,0.27096309,678.71,677.65,0.2951376]
[1738233295680,0.27096309,678.7,677.65,0.2951376]
[1738233295881,0.27096309,678.73,677.65,0.2951376]
[1738233296081,0.27096309,678.72,677.65,0.2951376]
[1738233296381,1.10532002,678.74,677.65,0.2951376]
[1738233296681,0.2709666,678.73,677.65,0.2951376]
[1738233297582,1.10532002,678.67,677.65,0.2951376]
[1738233299680,0.270957,678.66,677.66,0.25903875]
[1738233300882,1.10532002,678.68,677.66,0.25903875]
[1738233301084,1.10532002,678.68,677.65,0.2951376]
[1738233301284,0.27095073,678.67,677.66,0.2590194]
[1738233303690,1.10532002,678.64,677.66,0.2590194]
[1738233305888,1.10532002,678.64,677.65,0.2951376]
[1738233306080,1.10532002,678.64,677.66,0.25903367]
[1738233307692,1.10532002,678.65,677.66,0.25903367]
[1738233310693,1.10532002,678.65,677.65,0.2951376]
[1738233310892,1.10532002,678.65,677.66,0.25901246]
[1738233311293,1.39718233,678.84,677.66,0.25901246]
[1738233311294,1.10532002,678.68,677.68,1.10541507]
[1738233311498,1.10532002,678.68,677.69,0.25901246]
[1738233312496,1.10532002,678.68,677.7,0.25896516]
[1738233312690,1.10532002,678.68,677.71,0.25896516]
[1738233312893,1.10532002,678.68,677.68,1.10541507]
[1738233312894,1.10532002,678.68,677.69,0.25896516]
[1738233313195,1.10532002,678.68,677.7,0.25896516]
[1738233313395,1.10532002,678.68,677.71,0.25896516]
[1738233313597,1.10532002,678.68,677.69,0.25896516]
[1738233313795,1.10532002,678.68,677.7,0.25896516]
[1738233313993,1.10532002,678.68,677.68,1.10541507]
[1738233314190,1.10532002,678.68,677.69,0.25898039]
[1738233320502,1.10532002,678.77,677.76,1.10541507]
[1738233323005,0.29462023,678.84,677.67,1.53905689]
[1738233323204,0.29462023,678.84,677.68,0.5541038]
[1738233323404,0.29462023,678.84,677.69,0.55409944]
[1738233323703,0.29462023,678.84,677.7,0.55409509]
[1738233323905,0.29462023,678.84,677.71,0.25897898]
[1738233329308,0.29462023,678.84,677.7,0.29511583]
[1738233329510,0.29462023,678.84,677.71,0.25897813]
[1738233330308,0.29462023,678.84,677.7,0.29511583]
[1738233330608,0.29462023,678.84,677.71,0.2589708]
[1738233332110,0.29462023,678.84,677.72,0.25897396]
[1738233332306,0.29462023,678.84,677.73,0.25897396]
[1738233332505,0.29462023,678.84,677.71,0.25897396]
[1738233332712,0.29462023,678.84,677.72,0.25897396]
[1738233332912,0.29462023,678.84,677.73,0.25897396]
[1738233333107,0.29462023,678.84,677.71,0.25897396]
[1738233333310,0.29462023,678.84,677.7,0.29511583]
[1738233333311,0.29462023,678.84,677.74,0.25897396]
[1738233333612,0.29462023,678.84,677.75,0.25897396]
[1738233333813,0.29462023,678.84,677.76,0.25895831]
[1738233334111,0.29462023,678.84,677.77,0.25895831]
[1738233334314,0.29462023,678.84,677.78,0.25895831]
[1738233334607,0.29462023,678.84,677.79,0.25895831]
[1738233334813,0.29462023,678.84,677.71,0.25895831]
[1738233335013,0.29462023,678.84,677.72,0.55406543]
[1738233335213,0.29462023,678.84,677.73,0.55406107]
[1738233335411,0.29462023,678.84,677.74,0.5540626]
[1738233335712,0.29462023,678.84,677.75,0.25896419]
[1738233337007,0.29462023,678.84,677.76,0.25896435]
[1738233337213,0.29462023,678.84,677.77,0.25896435]
[1738233337409,0.29462023,678.84,677.78,0.25896435]
[1738233337610,0.29462023,678.84,677.75,0.25896435]
[1738233337810,0.29462023,678.84,677.76,0.25896435]
[1738233338007,0.27088013,678.83,677.77,0.25896435]
[1738233338208,0.27088013,678.83,677.78,0.25896435]
[1738233338514,0.27088013,678.83,677.79,0.25896435]
[1738233338715,0.29462023,678.84,677.8,0.25896486]
[1738233338913,0.29462023,678.84,677.81,0.25896486]
[1738233339106,0.29462023,678.84,677.75,0.25896486]
[1738233339313,0.29462023,678.84,677.76,0.25896486]
[1738233339613,0.27088023,678.83,677.77,0.25896486]
[1738233339913,0.27088023,678.83,677.78,0.25896486]
[1738233340114,0.27088023,678.83,677.75,0.25896486]
[1738233340319,0.27088023,678.83,677.76,0.25896486]
[1738233340508,0.27088023,678.83,677.75,0.25896486]
[1738233340717,0.27088023,678.83,677.76,0.25896486]
[1738233340914,0.27088023,678.83,677.77,0.25896486]
[1738233341115,0.29462023,678.84,677.75,0.25896486]
[1738233341315,0.29462023,678.84,677.76,0.25896486]
[1738233341612,0.29462023,678.84,677.77,0.25896486]
[1738233341817,0.27088131,678.83,677.78,0.25896486]
[1738233342116,1.39994025,678.84,677.79,0.25896601]
[1738233342309,0.27088153,678.83,677.8,0.25896601]
[1738233342511,0.27088153,678.83,677.78,0.25896601]
[1738233342715,0.27088153,678.83,677.79,0.25896601]
[1738233342916,0.27088153,678.83,677.77,1.10541507]
[1738233342917,0.27088153,678.83,677.78,0.25896601]
[1738233343118,0.27088153,678.83,677.79,0.25896601]
[1738233343318,0.27088153,678.83,677.8,0.25896601]
[1738233343520,0.27088153,678.83,677.78,0.25896601]
[1738233343820,0.27088153,678.83,677.77,1.10541507]
[1738233343821,0.27088153,678.83,677.79,0.25896601]
[1738233344013,0.27088153,678.83,677.78,0.25896601]
[1738233344216,0.27088153,678.83,677.79,0.25896601]
[1738233344412,1.10532002,678.78,677.83,1.10541507]
[1738233345720,1.10532002,678.78,677.84,0.25896601]
[1738233347422,1.10532002,678.73,677.88,1.10541507]
[1738233347623,1.10532002,678.73,677.89,0.25896601]
[1738233349225,1.10532002,678.73,677.9,0.25896712]
[1738233349523,1.10532002,678.73,677.91,0.25896712]
[1738233349825,1.10532002,678.69,677.92,1.36438219]
[1738233350025,1.10532002,678.69,677.92,1.10541507]
[1738233353328,1.10532002,678.72,677.9,1.10541507]
[1738233356222,1.10532002,678.77,677.9,1.10541507]
[1738233359933,1.10532002,678.93,677.91,0.25892545]
[1738233360231,1.10532002,678.93,677.86,1.10541507]
[1738233360426,1.10532002,678.93,677.87,0.25892689]
[1738233361132,1.10532002,678.93,677.86,1.10541507]
[1738233361334,1.10532002,678.93,677.87,0.2589257]
[1738233363738,1.10532002,678.96,677.87,0.2589257]
[1738233365141,0.27084256,678.95,677.87,0.2589257]
[1738233367542,1.10532002,678.91,677.9,1.10541507]
[1738233367742,1.10532002,678.91,677.91,0.25892788]
[1738233369338,1.10532002,678.91,677.92,0.25893003]
[1738233369541,1.10532002,678.91,677.93,0.25893003]
[1738233369741,1.10532002,678.91,677.91,0.25893003]
[1738233369936,1.10532002,678.91,677.9,0.25892948]
[1738233370136,1.10532002,678.91,677.91,0.25892948]
[1738233370340,1.10532002,678.91,677.9,0.25892948]
[1738233370541,1.10532002,678.91,677.91,0.25892948]
[1738233370736,1.10532002,678.91,677.9,0.25892948]
[1738233370941,1.10532002,678.91,677.89,1.10541507]
[1738233371142,1.10532002,678.91,677.9,0.25892745]
[1738233372844,1.10532002,678.95,677.91,0.25892709]
[1738233373043,1.10532002,678.95,677.88,0.25892709]
[1738233373241,1.10532002,678.95,677.89,0.25892709]
[1738233373441,1.10532002,678.95,677.88,0.25892709]
[1738233373642,1.10532002,678.95,677.89,0.25892709]
[1738233373942,1.10532002,678.95,677.9,0.25892709]
[1738233374138,1.10532002,678.95,677.88,0.25892709]
[1738233374342,1.10532002,678.95,677.89,0.29503311]
[1738233374641,1.10532002,678.95,677.9,0.25892709]
[1738233375647,1.10532002,678.97,677.9,0.25892709]
[1738233377738,1.10532002,678.97,677.89,0.29503311]
[1738233377944,1.10532002,678.97,677.9,0.25892394]
[1738233379442,1.10532002,678.97,677.89,0.29503311]
[1738233380244,1.10532002,678.97,677.9,0.25892377]
[1738233381045,0.2708394,678.96,677.9,0.25892377]
[1738233381448,1.10532002,678.97,677.89,0.29503311]
[1738233381649,0.27083804,678.96,677.9,0.25892286]
[1738233382446,1.10532002,678.95,677.91,1.10541507]
[1738233382642,1.10532002,678.95,677.92,0.25892286]
[1738233385950,1.32307452,679.43,677.92,0.25892286]
[1738233385951,1.10532002,678.9,677.95,1.10541507]
[1738233386249,1.10532002,678.9,677.96,0.25892286]
[1738233391554,1.10532002,678.9,677.97,0.25892352]
[1738233391854,1.10532002,678.9,677.98,0.25892352]
[1738233392057,1.10532002,678.9,677.96,0.25892352]
[1738233392252,1.10532002,678.9,677.97,0.25892352]
[1738233392452,1.10532002,678.9,677.96,0.25892352]
[1738233392650,1.10532002,678.9,677.97,0.25892352]
[1738233392848,1.10532002,678.9,677.98,0.25892352]
[1738233393049,2.25106429,679.5,677.89,0.29503311]
[1738233393050,1.10532002,678.86,678.0,1.10541507]
[1738233393252,1.10532002,678.86,678.01,0.25892352]
[1738233393959,1.10532002,678.86,678.0,1.10541507]
[1738233394461,1.10532002,678.86,678.01,0.25892545]
[1738233394864,1.10532002,678.86,678.0,1.10541507]
[1738233395062,1.10532002,678.86,678.01,0.25892603]
[1738233395963,1.10532002,678.8,678.05,1.10541507]
[1738233402960,1.10532002,678.8,677.94,1.10541507]
[1738233403159,1.10532002,678.87,677.94,1.10541507]
[1738233405969,1.10532002,678.91,677.91,1.10541507]
[1738233408871,1.10532002,678.93,677.9,1.10541507]
[1738233409070,1.10532002,678.93,677.92,1.53860325]
[1738233411777,1.10532002,678.9,677.92,1.53860325]
[1738233414373,1.10532002,678.91,677.92,2.64401832]
[1738233416671,1.10532002,678.91,677.92,1.10541507]
[1738233417477,0.2708975,678.9,677.89,0.29503311]
[1738233417678,0.2708975,679.04,677.89,0.29503311]
[1738233417978,1.10532002,679.05,677.89,0.29503311]
[1738233418172,0.56544632,679.04,677.89,0.29503311]
[1738233418377,0.27091287,679.03,677.89,0.29503311]
[1738233419778,1.10532002,678.74,677.89,0.29503311]
[1738233419978,0.27094093,678.73,677.71,1.10541507]
[1738233422078,0.27095869,678.72,677.72,0.25904234]
[1738233422379,0.27095869,678.71,677.72,0.25904234]
[1738233422582,1.10532002,678.65,677.72,0.25904234]
[1738233422880,1.10532002,678.65,677.73,0.25904234]
[1738233423079,1.10532002,678.65,677.62,0.25904234]
[1738233423273,1.10532002,678.65,677.61,1.10541507]
[1738233423478,0.27095459,678.64,677.62,0.25903831]
[1738233423775,1.10532002,678.65,677.62,0.25903831]
[1738233425282,1.10532002,678.77,677.62,0.25903831]
[1738233425479,0.27094878,678.76,677.63,0.25903831]
[1738233425872,0.27094878,678.76,677.51,1.10541507]
[1738233425873,0.27094878,678.76,677.64,0.25903831]
[1738233426077,0.27094878,678.76,677.52,0.25903831]
[1738233426277,0.27095181,678.75,677.53,0.55422544]
[1738233426479,0.27095181,678.76,677.54,0.55422108]
[1738233426778,0.27095181,678.75,677.55,0.25903556]
[1738233426977,1.10532002,678.77,677.55,0.25903556]
[1738233426978,0.27095181,678.76,677.55,0.25903556]
[1738233427180,0.27095181,678.75,677.56,0.29517681]
[1738233427481,0.27094919,678.74,677.57,0.25903293]
[1738233427679,0.27094919,678.76,677.58,0.29516809]
[1738233427875,0.27094919,678.75,677.59,0.25903293]
[1738233428080,0.27094919,678.74,677.59,0.25903293]
[1738233428282,0.27094919,678.73,677.59,0.25903293]
[1738233428581,0.27094919,678.72,677.59,0.25903293]
[1738233428881,0.27094919,678.71,677.59,0.25903293]
[1738233429077,0.27095144,678.7,677.6,0.25903518]
[1738233429281,1.10532002,678.82,677.61,0.25903518]
[1738233429282,0.27095144,678.69,677.61,0.25903518]
[1738233429475,0.27095144,678.81,677.59,0.25903518]
[1738233429674,0.27095144,678.8,677.6,0.25903518]
[1738233429878,0.27095144,678.79,677.61,0.25903518]
[1738233430075,1.10532002,678.82,677.59,0.25903518]
[1738233430076,0.27095144,678.81,677.59,0.25903518]
[1738233430281,0.27095144,678.8,677.6,0.25903518]
[1738233430478,0.27095144,678.81,677.59,0.25903518]
[1738233430678,0.27095135,678.8,677.6,0.25903509]
[1738233430884,0.27095135,678.81,677.59,0.25903509]
[1738233431078,0.27095135,678.8,677.6,0.25903509]
[1738233431283,0.27095135,678.83,677.59,0.25903509]
[1738233431586,0.27095135,678.82,677.6,0.25903509]
[1738233431883,0.27095135,678.81,677.61,0.25903509]
[1738233432078,0.27095135,678.8,677.62,0.25903509]
[1738233432282,1.10532002,678.84,677.58,0.29516809]
[1738233432478,0.27095197,678.83,677.59,0.25903571]
[1738233433883,1.10532002,678.84,677.58,0.29516809]
[1738233434088,0.2709549,678.83,677.59,0.25903862]
[1738233435492,1.10532002,678.84,677.58,0.29516809]
[1738233435789,1.37627332,678.83,677.59,0.25903703]
[1738233435990,0.2709533,678.82,677.59,0.25903703]
[1738233437289,0.27095437,678.81,677.6,0.25903809]
[1738233437490,0.27095437,678.82,677.59,0.25903809]
[1738233437683,0.27095437,678.81,677.6,0.25903809]
[1738233437885,1.10532002,678.83,677.58,0.29516809]
[1738233438089,1.10532002,678.84,677.58,0.29516809]
[1738233440190,0.27095056,678.83,677.59,0.25903458]
[1738233440490,1.37627058,678.83,677.59,0.25903458]
[1738233440685,0.27095056,678.82,677.59,0.25903458]
[1738233440984,1.10532002,678.83,677.58,0.29516809]
[1738233441189,0.27095371,678.82,677.59,0.2590377]
[1738233442688,1.10532002,678.83,677.58,0.29516809]
[1738233442889,0.27095371,678.82,677.59,0.2590377]
[1738233443392,0.27095371,678.87,677.59,0.2590377]
[1738233443591,0.27095371,678.86,677.59,0.2590377]
[1738233443886,0.27095371,678.85,677.59,0.2590377]
[1738233444090,0.27095371,678.84,677.59,0.2590377]
[1738233444291,0.27095371,678.87,677.59,0.2590377]
[1738233444492,0.27095371,678.86,677.59,0.2590377]
[1738233444685,0.27095371,678.85,677.59,0.2590377]
[1738233444884,0.27095371,678.84,677.59,0.2590377]
[1738233445090,0.27095371,678.83,677.59,0.2590377]
[1738233445290,0.27095371,678.82,677.59,0.2590377]
[1738233445491,0.27095371,678.81,677.59,0.2590377]
[1738233445690,1.10532002,678.88,677.59,0.2590377]
[1738233445691,1.10532002,678.85,677.59,0.2590377]
[1738233445995,0.27095371,678.84,677.59,0.2590377]
[1738233448695,0.27097093,678.83,677.6,0.25905485]
[1738233448896,0.29453345,679.04,677.58,0.29516809]
[1738233448897,1.10532002,678.77,677.61,0.25905485]
[1738233449195,0.27097093,678.76,677.62,0.25905485]
[1738233449391,0.27097093,678.76,677.59,0.25905485]
[1738233449593,0.27097093,678.76,677.6,0.25905485]
[1738233449894,0.27097093,678.76,677.61,0.25905485]
[1738233450095,0.27097093,678.76,677.59,0.25905485]
[1738233450290,0.27097093,678.76,677.58,0.29516809]
[1738233450496,0.27097093,678.76,677.59,0.25904817]
[1738233451897,1.10532002,678.69,677.59,0.25904817]
[1738233452596,1.10532002,678.69,677.6,0.25904092]
[1738233452796,1.10532002,678.69,677.59,0.25904092]
[1738233452990,1.10532002,678.69,677.6,0.25903859]
[1738233453194,1.10532002,678.69,677.61,0.25903859]
[1738233453492,1.10532002,678.69,677.62,0.25903859]
[1738233453690,1.10532002,678.69,677.59,0.25903859]
[1738233453894,1.10532002,678.69,677.6,0.25903859]
[1738233454097,1.10532002,678.69,677.61,0.25903859]
[1738233454297,1.10532002,678.69,677.62,0.25904019]
[1738233454495,1.10532002,678.69,677.63,0.25904019]
[1738233454696,1.10532002,678.69,677.58,0.29516809]
[1738233454899,1.10532002,678.65,677.64,0.25904266]
[1738233455098,1.10532002,678.65,677.62,1.10541507]
[1738233455294,1.10532002,678.65,677.63,0.25904494]
[1738233458200,0.76402995,679.03,677.65,1.10541507]
[1738233458201,1.10532002,678.6,677.65,1.10541507]
[1738233458403,1.10532002,678.6,677.66,0.25904494]
[1738233460699,1.10532002,678.59,677.67,1.10541507]
[1738233463309,1.10532002,678.62,677.63,1.10541507]
[1738233467410,1.10532002,678.62,677.6,1.10541507]
[1738233473015,1.32307452,679.17,677.59,1.53927813]
[1738233473016,1.39985347,679.04,677.59,1.53927813]
[1738233476317,0.29453345,679.04,677.59,1.53927813]
[1738233479910,0.270941,679.03,677.59,1.53927813]
[1738233480113,0.29454213,679.02,677.59,1.53927813]
[1738233480310,0.270941,679.01,677.59,1.53927813]
[1738233480612,0.29455081,679.0,677.59,1.53927813]
[1738233480810,0.27094004,678.99,677.59,1.53927813]
[1738233481011,0.29455948,678.98,677.59,1.53927813]
[1738233481209,0.27094004,678.97,677.59,1.53927813]
[1738233481411,0.56550386,678.97,677.59,1.53927813]
[1738233481716,0.27094004,678.96,677.59,1.53927813]
[1738233482118,0.29456382,678.97,677.59,1.53927813]
[1738233482317,0.27094074,678.96,677.59,1.53927813]
[1738233482619,1.10532002,678.8,677.59,1.53927813]
[1738233486420,1.10532002,678.8,677.6,0.29515938]
[1738233488926,1.10532002,678.89,677.6,0.29515938]
[1738233490917,1.10532002,678.89,677.61,0.25899013]
[1738233491122,1.10532002,678.89,677.62,0.29515067]
[1738233492428,1.10532002,678.89,677.63,0.25898116]
[1738233492624,1.10532002,678.94,677.62,0.29515067]
[1738233493126,1.10532002,678.94,677.63,0.25898136]
[1738233493325,1.10532002,678.94,677.64,0.29514196]
[1738233493524,1.10532002,678.94,677.65,0.25898136]
[1738233493823,1.10532002,678.94,677.66,0.29513325]
[1738233494023,1.10532002,678.94,677.67,0.25898352]
[1738233494024,0.27089813,678.93,677.67,0.25898352]
[1738233494323,1.10532002,678.94,677.67,0.25898352]
[1738233495422,1.10532002,678.94,677.68,0.29512454]
[1738233495627,1.10532002,678.94,677.69,0.25898352]
[1738233495826,1.10532002,678.94,677.7,0.29511583]
[1738233496030,1.10532002,678.94,677.71,0.25898352]
[1738233496326,0.27088213,678.93,677.71,0.25898352]
[1738233496527,1.10532002,678.91,677.71,0.25898352]
[1738233496726,0.27088213,678.9,677.71,0.25898352]
[1738233497332,0.27088118,678.89,677.72,0.55407277]
[1738233497530,0.27088118,678.88,677.73,0.55406841]
[1738233497830,0.27088118,678.87,677.74,0.55406406]
[1738233498026,0.27088118,678.87,677.75,0.29509406]
[1738233498331,1.10532002,678.91,677.76,0.25896565]
[1738233498532,0.27088115,678.9,677.76,0.25896565]
[1738233499832,1.10532002,678.89,677.76,0.25896565]
[1738233500031,0.27088115,678.88,677.76,0.55405535]
[1738233500230,0.27088115,678.88,677.77,0.25896565]
[1738233500432,0.27087999,678.87,677.78,0.25896447]
[1738233500731,1.10532002,678.89,677.79,0.25896447]
[1738233500934,0.27088197,678.88,677.77,0.25896447]
[1738233501127,0.27088197,678.88,677.78,0.25896447]
[1738233501331,0.27088197,678.88,677.79,0.25896447]
[1738233501532,1.10532002,678.89,677.76,0.2950897]
[1738233501732,1.10532002,678.89,677.77,0.25896253]
[1738233502135,1.10532002,678.89,677.78,0.25896254]
[1738233502334,1.10532002,678.89,677.77,0.25896254]
[1738233502834,1.10532002,678.9,677.77,0.25896254]
[1738233504633,1.10532002,678.9,677.76,0.2950897]
[1738233506732,1.10532002,678.93,677.76,0.2950897]
[1738233509938,0.29456382,678.97,677.76,0.2950897]
[1738233522445,1.10532002,678.95,677.76,0.2950897]
[1738233525245,1.10532002,678.91,677.76,0.2950897]
[1738233526948,0.29456382,678.97,677.76,0.2950897]
[1738233545659,0.27092992,678.96,677.76,0.2950897]
[1738233547959,0.29456382,678.97,677.76,0.2950897]
[1738233548160,0.27092448,678.96,677.76,0.2950897]
[1738233548563,1.10532002,678.85,677.76,0.2950897]